Cogmind - Beta 9.2 @@@ ROGUE MODE // 2019.11.20 @ 22:05:17 Player: Nalzok Result: Destroyed by D-53 Grenadier with Mini Grenade Launcher Performance ------------- Evolutions (1) 500 Regions Visited (4) 800 Robots Destroyed (59) 295 Value Destroyed (1402) 1402 Prototype IDs (0) 0 Alien Tech Used (0) 0 Bonus (0) 0 TOTAL SCORE: 2997 Bonus ------- None Cogmind --------- Core Integrity 0/400 Matter 249/300 Energy 66/100 System Corruption 0% Temperature Cool (9) Movement Core (600) Ox11 Location -9/Mines Parts ------- > --- POWER (1) -------- (None) > --- PROPULSION (2) --- (None) > --- UTILITY (4) ------ High-capacity Storage Unit Seismic Analyzer Core Shielding > --- WEAPON (2) ------- Beam Rifle > --- INVENTORY (12) --- Ion Engine Light Ion Engine Light Nuclear Core Wheel Improved Heat Sink Improved Heat Sink Light Assault Rifle Peak State ------------ > --- POWER ------------ Light Nuclear Core > --- PROPULSION ------- Aluminum Leg Aluminum Leg > --- UTILITY ---------- High-capacity Storage Unit Signal Interpreter > --- WEAPON ----------- Particle Gun Assault Rifle > --- INVENTORY -------- Ion Engine Light Ion Engine Light Nuclear Core Aluminum Leg Aluminum Leg Aluminum Leg Improved Heat Sink Improved Heat Sink Improved Heat Sink Core Shielding Core Shielding Light Cannon [Rating: 12] Favorites ----------- Power Light Ion Engine Engine Light Ion Engine Power Core Light Nuclear Core Propulsion Aluminum Leg Leg Aluminum Leg Wheel Wheel Utility High-capacity Storage Unit Storage High-capacity Storage Unit Processor Signal Interpreter Protection Core Shielding Weapon Light Cannon Energy Gun Particle Gun Energy Cannon Beam Cannon Ballistic Gun Light Assault Rifle Ballistic Cannon Light Cannon Launcher Mini Grenade Launcher Build | -11 -10 -10 -9 -9 ------- Run | Scr Mat Min Mat Min Slots Evolved 2 | . . . 2 . Power . | . . . . . Propulsion . | . . . . . Utility 2 | . . . 2 . Weapon . | . . . . . Parts Attached 58 | . 19 13 18 8 Power 12 | . 4 3 4 1 Engine 10 | . 4 1 4 1 Core 2 | . . 2 . . Reactor . | . . . . . Propulsion 20 | . 5 5 7 3 Treads . | . . . . . Leg 17 | . 5 5 7 . Wheel 3 | . . . . 3 Hover . | . . . . . Flight . | . . . . . Utility 5 | . 2 . 2 1 Device . | . . . . . Storage 1 | . 1 . . . Processor 2 | . 1 . . 1 Hackware . | . . . . . Protection 2 | . . . 2 . Artifact . | . . . . . Weapon 21 | . 8 5 5 3 Energy Gun 11 | . 5 2 3 1 Energy Cannon 2 | . 2 . . . Ballistic Gun 5 | . 1 3 1 . Ballistic Cannon 2 | . . . . 2 Launcher 1 | . . . 1 . Special Weapon . | . . . . . Impact Weapon . | . . . . . Slashing Weapon . | . . . . . Piercing Weapon . | . . . . . Special Melee Weapon . | . . . . . Unidentified Prototypes . | . . . . . Parts Lost 36 | . 7 7 16 6 Power 6 | . 1 1 3 1 Propulsion 12 | . 1 2 7 2 Utility 2 | . . . 1 1 Weapon 16 | . 5 4 5 2 Highest Loss Streak 11 | . 5 4 11 6 Average Slot Usage (%) 87 | . 95 99 95 59 Engine 7 | . 13 8 10 . Core 1 | . . 5 . . Leg 19 | . 27 27 20 . Storage 12 | . 14 14 11 11 Processor 9 | . 11 14 10 1 Protection 9 | . . . 21 21 Energy Gun 9 | . 12 11 11 . Energy Cannon 2 | . 5 5 . . Ballistic Gun 6 | . 9 10 6 . Ballistic Cannon 5 | . . . . 21 Naked Turns . | . . . . . Heaviest Build 43 | 11 43 42 43 43 Greatest Support 20 | 20 20 20 20 20 Greatest Overweight (x) 13 | . 4 2 11 13 Average Overweight (x) 2 | . . 1 2 8 Largest Inventory Capacity 12 | 6 12 12 12 12 Average Capacity 11 | 6 8 12 12 12 Most Carried 12 | 5 11 12 12 8 Average Carried 9 | 4 5 11 11 6 Final Capacity 12 | 6 12 12 12 12 Final Carried 12 | 2 10 12 8 7 Class Distribution -------------------- 56% | Scavenger-Mutant 43% | Mutant Dominant Class ---------------- Mutant | -10/Materials Scavenger-Mutant | -10/Mines Scavenger-Mutant | -9/Materials Mutant | -9/Mines Resources | -11 -10 -10 -9 -9 ----------- Run | Scr Mat Min Mat Min Matter Collected 978 | 195 213 190 181 199 Remotely . | . . . . . Salvage Created 1670 | . 649 385 536 100 Parts 121 | . 41 26 47 7 Haulers Intercepted . | . . . . . Recyclers Shooed 1 | . . 1 . . Parts Field Recycled . | . . . . . Retrieved Matter . | . . . . . Parts Self-Destructed . | . . . . . Prevented . | . . . . . Kills | -11 -10 -10 -9 -9 ------- Run | Scr Mat Min Mat Min Combat Hostiles Destroyed 39 | . 10 15 12 2 Guns 25 | . 7 8 10 . Cannons 12 | . 3 7 . 2 AOE 2 | . . . 2 . Classes Destroyed 10 | . 5 1 2 2 Worker 7 | . 4 . 1 2 Builder 6 | . . . 5 1 Tunneler 1 | . . . . 1 Recycler 1 | . 1 . . . Operator 2 | . 1 . 1 . Watcher 3 | . 2 . 1 . Swarmer 9 | . . 9 . . Grunt 27 | . 10 6 10 1 Sentry 2 | . . . 2 . Demolisher 1 | . . . . 1 Best Kill Streak 4 | . 4 3 4 2 Combat Bots Only 4 | . 3 3 4 2 Max Kills in Single Turn 2 | . 1 2 2 1 Gunslinging 1 | . . 1 . . Exploded 1 | . . . 1 . Melee . | . . . . . Uniques/NPCs Destroyed . | . . . . . Combat | -11 -10 -10 -9 -9 -------- Run | Scr Mat Min Mat Min Damage Taken 3432 | . 820 714 1309 589 Core 621 | . 124 97 252 148 Absorbed by Shields . | . . . . . Core Remaining (%) 55 | 100 . 11 . . Volleys Fired 162 | . 53 43 52 14 Largest 2 | . 2 2 2 2 Hottest 120 | . 120 120 96 70 Shots Fired 283 | . 94 71 93 25 Gun 219 | . 84 50 82 3 Cannon 53 | . 10 21 . 22 Launcher 11 | . . . 11 . Special . | . . . . . Kinetic 120 | . 27 31 40 22 Thermal 127 | . 42 40 42 3 Explosive 11 | . . . 11 . Electromagnetic 25 | . 25 . . . Robot Hit Streak 15 | . 14 5 15 5 Robot Miss Streak 6 | . 3 6 2 2 Penetration Max . | . . . . . Secondary Targets 4 | . 2 1 1 . Max Gunslinging Chain 1 | . 1 1 1 . Shots Hit Robots 177 | . 61 39 63 14 Core Hits 91 | . 31 20 34 6 Critical Hits 2 | . . 1 . 1 Critical Kills 1 | . . 1 . . Critical Parts Destroyed 1 | . . . . 1 Melee Attacks . | . . . . . Impact . | . . . . . Slashing . | . . . . . Piercing . | . . . . . Sneak Attacks . | . . . . . Combat Hostiles . | . . . . . Follow-up Attacks . | . . . . . Damage Inflicted 3358 | . 842 579 1660 277 Guns 1852 | . 682 335 806 29 Cannons 597 | . 105 244 . 248 Explosions 909 | . 55 . 854 . Melee . | . . . . . Ramming . | . . . . . Kinetic 863 | . 127 171 317 248 Thermal 1387 | . 461 408 489 29 Explosive 854 | . . . 854 . Electromagnetic 254 | . 254 . . . Impact . | . . . . . Slashing . | . . . . . Piercing . | . . . . . Highest Corruption . | . . . . . Average Corruption . | . . . . . Corruption Purged . | . . . . . Overload Shots . | . . . . . Overflow Damage 94 | . 40 . 54 . Projectiles . | . . . . . Explosions 94 | . 40 . 54 . Melee . | . . . . . Knockbacks 4 | . . . . 4 Impact . | . . . . . Kinetic 4 | . . . . 4 Secondary . | . . . . . Self-Inflicted Damage 114 | . 43 . 71 . Shots 4 | . 1 . 3 . Rammed . | . . . . . Targets Rammed . | . . . . . Kicked . | . . . . . Crushed . | . . . . . Highest Temperature 257 | . 244 257 233 12 Average Temperature 87 | . 81 107 78 9 Received Heat Transfer 1281 | . 453 225 522 81 Effects 3 | . 1 2 . . Energy Bleed 2 | . . 2 . . Interference 1 | . 1 . . . Siege Activations . | . . . . . Robots Corrupted . | . . . . . Combat Hostiles . | . . . . . Parts Fried 2 | . 2 . . . Impact Corruptions . | . . . . . Robots Melted . | . . . . . Combat Hostiles . | . . . . . Parts Melted 4 | . 1 3 . . Heat Transferred 3144 | . 957 914 1199 74 Parts Sabotaged . | . . . . . Parts Stolen . | . . . . . Parts Stripped . | . . . . . Power Chain Reactions 1 | . 1 . . . Missiles Intercepted . | . . . . . Alert | -11 -10 -10 -9 -9 ------- Run | Scr Mat Min Mat Min Peak Influence 220 | . 169 142 220 44 Average Influence 69 | . 70 79 107 24 Maximum Alert Level 1 | . . . 1 . Low Security (%) 98 | 100 100 100 89 100 Level 1 1 | . . . 10 . Level 2 . | . . . . . Level 3 . | . . . . . Level 4 . | . . . . . Level 5 . | . . . . . High Security . | . . . . . Max Security . | . . . . . Squads Dispatched 8 | . 3 . 5 . Investigation 1 | . . . 1 . Extermination . | . . . . . Reinforcement 7 | . 3 . 4 . Assault . | . . . . . Garrison . | . . . . . Intercept . | . . . . . Construction Impeded . | . . . . . Haulers Reinforced . | . . . . . Stealth | -11 -10 -10 -9 -9 --------- Run | Scr Mat Min Mat Min Distress Signals 2 | . . . 2 . Communications Jammed . | . . . . . Distress Signals . | . . . . . Times Spotted 68 | . 18 16 29 5 Peak Tracking Total 5 | . 4 3 5 5 Tactical Retreats 5 | . 3 1 1 . Traps | -11 -10 -10 -9 -9 ------- Run | Scr Mat Min Mat Min Traps Triggered 1 | . . . 1 . Indirectly . | . . . . . Trap Hack Attempts . | . . . . . Triggered . | . . . . . Disarmed . | . . . . . Reprogrammed . | . . . . . Reused . | . . . . . Traps Extracted . | . . . . . Installed . | . . . . . Triggered . | . . . . . Machines | -11 -10 -10 -9 -9 ---------- Run | Scr Mat Min Mat Min Machines Disabled 5 | . 1 . 4 . Max in Single Turn 1 | . 1 . 1 . Machines Sabotaged . | . . . . . Garrisons Compromised . | . . . . . Overloaded Fab Kills . | . . . . . Fab Network Shutdowns . | . . . . . Hacking | -11 -10 -10 -9 -9 --------- Run | Scr Mat Min Mat Min Machines Accessed 4 | . 2 . 2 . Terminals 4 | . 2 . 2 . Fabricators . | . . . . . Repair Stations . | . . . . . Recycling Units . | . . . . . Scanalyzers . | . . . . . Garrison Access . | . . . . . Total Hacks 6 | . 3 . 3 . Successful 3 | . 1 . 2 . Failed 3 | . 2 . 1 . Catastrophic 1 | . 1 . . . Database Lockouts . | . . . . . Manual . | . . . . . Terminals 6 | . 3 . 3 . Fabricators . | . . . . . Repair Stations . | . . . . . Recycling Units . | . . . . . Scanalyzers . | . . . . . Garrison Access . | . . . . . Terminal Hacks 3 | . 1 . 2 . Emergency Access Points 2 | . 1 . 1 . Unreport Threat 1 | . . . 1 . Fabricator Hacks . | . . . . . Repair Station Hacks . | . . . . . Recycling Unit Hacks . | . . . . . Scanalyzer . | . . . . . Garrison Access Hacks . | . . . . . Unauthorized Hacks . | . . . . . Terminals . | . . . . . Fabricators . | . . . . . Repair Stations . | . . . . . Recycling Units . | . . . . . Scanalyzers . | . . . . . Garrison Access . | . . . . . Data Cores Recovered 1 | . . . 1 . Used . | . . . . . Hacking Detections 2 | . 1 . 1 . Full Trace Events . | . . . . . Feedback Events . | . . . . . Feedback Blocked . | . . . . . Robot Schematics Acquired . | . . . . . Robots Built . | . . . . . Matter . | . . . . . Time . | . . . . . Total Robot Build Rating . | . . . . . Part Schematics Acquired . | . . . . . Parts Built . | . . . . . Matter . | . . . . . Time . | . . . . . Total Part Build Rating . | . . . . . Parts Repaired . | . . . . . Time . | . . . . . Parts Recycled . | . . . . . Recycled Matter . | . . . . . Retrieved Matter . | . . . . . Retrieved Components . | . . . . . Parts Scanalyzed . | . . . . . Part Schematics Acquired . | . . . . . Parts Damaged . | . . . . . Bothacking | -11 -10 -10 -9 -9 ------------ Run | Scr Mat Min Mat Min Used RIF Installer . | . . . . . Robots Hacked . | . . . . . Non-combat . | . . . . . Combat . | . . . . . Robot Hacks Applied . | . . . . . Relay Couplers Released . | . . . . . Robots Rewired . | . . . . . Allies Hacked . | . . . . . Hacks Repelled . | . . . . . Allies | -11 -10 -10 -9 -9 -------- Run | Scr Mat Min Mat Min Total Allies . | . . . . . Largest Group . | . . . . . Highest-Rated Group . | . . . . . Highest-Rated Ally . | . . . . . Total Orders . | . . . . . Ally Attacks . | . . . . . Total Damage . | . . . . . Kills . | . . . . . Allies Corrupted . | . . . . . Allies Melted . | . . . . . Intel | -11 -10 -10 -9 -9 ------- Run | Scr Mat Min Mat Min Robot Analysis Total . | . . . . . Derelict Logs Recovered 2 | . . 2 . . Drone Launches . | . . . . . Drone Recoveries . | . . . . . Exploration | -11 -10 -10 -9 -9 ------------- Run | Scr Mat Min Mat Min Turns Passed 3140 | 2 551 1215 593 779 Spaces Moved 1324 | 1 265 671 239 148 Core 94 | . . . 1 93 Treads . | . . . . . Legs 1175 | 1 265 671 238 . Wheels 55 | . . . . 55 Hover . | . . . . . Flight . | . . . . . Fastest Speed 90 | 120 120 150 150 90 Average Speed 194 | 120 138 159 181 474 Slowest Speed 700 | 120 240 180 600 700 Overloaded Moves . | . . . . . Propulsion Burnouts . | . . . . . Robots Hopped . | . . . . . Cave-ins Triggered . | . . . . . Exploration Rate (%) 41 | 2 52 96 28 27 Regions Visited 4 Branch Regions 2 Pre-discovered Areas . | . . . . . Known Exits Taken 3 | . 1 1 1 . Unknown Exits Taken 1 | 1 . . . . Scrap Searched 2 | . . 1 . 1 Spaces Dug . | . . . . . Terrain Destroyed 60 | . 2 . 57 1 Melee . | . . . . . Projectile 1 | . . . . 1 AOE 59 | . 2 . 57 . Actions | -11 -10 -10 -9 -9 --------- Run | Scr Mat Min Mat Min Total 1614 | 4 354 745 313 198 Wait 39 | . 9 2 1 27 Move 1320 | . 264 670 238 148 Hop . | . . . . . Pick Up 17 | . 6 8 2 1 Fast Attach 14 | . 3 5 2 4 Attach 22 | . 5 3 11 3 Detach 2 | . . 1 1 . Swap 22 | . 11 5 5 1 Drop 16 | 4 3 8 1 . Fire 162 | . 53 43 52 14 Melee . | . . . . . Ram . | . . . . . Kick . | . . . . . Crush . | . . . . . Escape Stasis . | . . . . . Rewire . | . . . . . Trap . | . . . . . Miscellaneous . | . . . . . Route ------- -11/Scrapyard -10/Materials -10/Mines (discovered 2 exits: *Mat x2) -9/Materials -9/Mines (discovered 1 exit: [*Mat]) History --------- Turn | Location | Event 3 | -11/Scrapyard | Discovered new exit (range 0) 3 | -11/Scrapyard | Entered Materials 305 | -10/Materials | Build established: Mutant 366 | -10/Materials | Discovered new exit (range 16) 498 | -10/Materials | Lost 5 parts (1p1n3w) 552 | -10/Materials | Identified exit to Mines 554 | -10/Materials | Entered Mines 556 | -10/Mines | Core integrity fell below 50% 752 | -10/Mines | Learned Materials stockpile data 795 | -10/Mines | Build established: Scavenger-Mutant 816 | -10/Mines | Discovered new exit (range 4) 848 | -10/Mines | Identified exit to Materials 997 | -10/Mines | Core integrity fell below 20% 1031 | -10/Mines | Lost 4 parts (2n2w) 1240 | -10/Mines | Discovered exit to Materials (range 15) 1769 | -10/Mines | Entered Materials 1769 | -9/Materials | Evolved 2 slots: Utility x2 2205 | -9/Materials | Lost 3 parts (1p2w) 2249 | -9/Materials | Discovered new exit (range 14) 2307 | -9/Materials | Identified exit to Mines 2341 | -9/Materials | Core integrity fell below 50% 2362 | -9/Materials | Entered Mines 2392 | -9/Mines | Lost 11 parts (2p5n1u3w) 2618 | -9/Mines | Build established: Mutant 3079 | -9/Mines | Assembled infested the area 3084 | -9/Mines | Assisted by a Guerilla fighting off Assembled 3130 | -9/Mines | Core integrity fell below 20% 3131 | -9/Mines | Discovered new exit (range 11) 3141 | -9/Mines | Destroyed by D-53 Grenadier with Mini Grenade Launcher Last Messages --------------- 03130_ D-53 Grenadier knocked back. 03130_ D-53 Grenadier destroyed. 03131_ U-05 Engineer builds a Wall. 03131_ K-01 Serf collects debris. 03131_ EXIT=FOUND 03132_ The unstable cave ceiling collapses. 03133_ G-34 Mercenary destroyed. 03133_ Core Shielding destroyed. 03134_ The unstable cave ceiling collapses. 03135_ K-01 Serf collects debris. 03135_ U-05 Engineer lays Concrete. 03135_ Lgt. Cannon destroyed. 03136_ The unstable cave ceiling collapses. 03136_ U-05 Engineer builds a Wall. 03137_ U-05 Engineer lays Concrete. 03137_ R-06 Scavenger collects Fission Core. 03138_ U-05 Engineer lays Concrete. 03138_ K-01 Serf collects debris. 03139_ U-05 Engineer lays Concrete. 03141_ U-05 Engineer builds a Wall. Map ----- +----------------------------------------------------+ | ??????????????????????????????????????? | | ??????????????????????????????????????? | | ??????????????????????????????????????? | | ??????????????????????????????????????? | | ??????????????????????????????????????? | | ??????????????????????????????????????? | | ??????????????????????????????????????? | | ??????????????????????????????????????? | | ????????##????????????????????????????? | | ???????## %???????????????????????????? | | ???????# ? ????????????????????????? | | ??????#? # ????????????????????????? | | ??????# ## u# #???????????????????????? | | ??????# u # ???????????????????????? | | ??????# rk ???????????????????????? | | ??????# ???????????????????????? | | ???????# ##?????????????????????? | | ????????# #####?????????????????? | | ??????#### ##????????????????? | | ???#### #????????????????? | | ?? t ## #????????????????? | | ?? " = #????????????????? | | ?? " d= #????????????????? | | ?# " g #????????????????? | | ?# ##????????????????? | | ??? "%""" @ ###????????????????? | | ????? """ ##??####??????????? | | ????? """ #### ###????????? | | ????? # ## ######???? | | ??? < """?### #???? | | ?? "????####### """ ????? | | ?#???????????????# """ #?????? | | ?????????????????# """ #??????? | | ?????????????????## """ ##???????? | | ??????????????????## ##????????? | | ???????????????????# #?????????? | | ???????????????????## !##?????##### | | ????????????????????## | ##???### | | ?????????????????????# ##### | | ?????????????????????## | | ??????????????????????## # | | ???????????????????????## ##### #### | | ????????????????????????#####???####??? | | ??????????????????????????????????????? | | ??????????????????????????????????????? | | | | | | | | | | | +----------------------------------------------------+ Best States ------------- Heat Dissipation 28 Energy Generation 14 Energy Capacity 250 Matter Stores 300 Matter Capacity 300 Sight Range 16 Terrain Scan Density 60 Core Shielding 20 Evasion (%) 42 Item Schematics ----------------- None Robot Schematics ------------------ None Fabricated ------------ Nothing Alien Tech Used ----------------- None Achievements -------------- None Challenges ------------ None Game ------ Seed AlloySensorRay Manual? 0 Play Time 00:19:06 Cumulative 179.9 hours Start 2019.11.20 @ 21:45:03 End 2019.11.20 @ 22:05:17 Sessions 1 Manual Loads 0 Difficulty Rogue Special Mode None Game No. 293 Rogue 293 Adventurer 0 Explorer 0 Win Type - Total 0 Types 0/0/0/0/0/0/0 Lore% 58 Gallery% 73 Achievement% 44 Wizard Run 0 Options --------- ASCII 1 Keyboard 1 Movement Vi Keybinds 0 Fullscreen 1 Font 14/Cog Map View 72x52 Tactical HUD 1 Map Filters NONE Filters LOW_CONTRAST(13,24,33) Steam 0 RUN: 5f9dd141-0f98-4ff0-b0ca-458b561658e2